[Event "Titled Tuesday Blitz August 08 Early 2023"]
[White "Legenia, Artem"]
[Black "Do Nascimento,Christian Almeida"]
[WhiteFideId "14136945"]
[BlackFideId "2143801"]
[WhiteElo "2391"]
[BlackElo "2560"]
[Result "1-0"]
[Round "5"]
[TimeControl "180+1"]
[Date "2023.08.08"]
[WhiteClock "0:01:44"]
[BlackClock "0:00:00"]
[Board "140"]

1. c4 {[%clk 0:02:56]}  e5 {[%clk 0:02:59]} 2. e3 {[%clk 0:02:55]}  f5 {[%clk 0:02:58]} 3. Ne2 {[%clk 0:02:55]}  Nf6 {[%clk 0:02:58]} 4. Nbc3 {[%clk 0:02:56]}  Nc6 {[%clk 0:02:55]} 5. g3 {[%clk 0:02:56]}  Bb4 {[%clk 0:02:55]} 6. Bg2 {[%clk 0:02:56]}  d6 {[%clk 0:02:55]} 7. O-O {[%clk 0:02:56]}  O-O {[%clk 0:02:55]} 8. a3 {[%clk 0:02:55]}  Bxc3 {[%clk 0:02:54]} 9. Nxc3 {[%clk 0:02:56]}  Qe8 {[%clk 0:02:55]} 10. Nd5 {[%clk 0:02:56]}  Nxd5 {[%clk 0:02:52]} 11. cxd5 {[%clk 0:02:55]}  Ne7 {[%clk 0:02:51]} 12. b4 {[%clk 0:02:55]}  f4 {[%clk 0:02:51]} 13. d4 {[%clk 0:02:53]}  Qg6 {[%clk 0:02:37]} 14. exf4 {[%clk 0:02:46]}  exf4 {[%clk 0:02:36]} 15. Bxf4 {[%clk 0:02:43]}  Rxf4 {[%clk 0:01:51]} 16. gxf4 {[%clk 0:02:43]}  Bg4 {[%clk 0:01:46]} 17. Qb3 {[%clk 0:02:40]}  Nf5 {[%clk 0:01:42]} 18. Kh1 {[%clk 0:02:29]}  Nxd4 {[%clk 0:01:35]} 19. Qc3 {[%clk 0:02:19]}  Ne2 {[%clk 0:01:32]} 20. Qc4 {[%clk 0:02:19]}  Qh6 {[%clk 0:01:03]} 21. f3 {[%clk 0:02:10]}  Ng3+ {[%clk 0:01:03]} 22. Kg1 {[%clk 0:02:09]}  Nxf1 {[%clk 0:01:02]} 23. fxg4 {[%clk 0:02:04]}  Ne3 {[%clk 0:00:53]} 24. Qe4 {[%clk 0:02:01]}  Nxg4 {[%clk 0:00:46]} 25. h3 {[%clk 0:02:02]}  Nf6 {[%clk 0:00:45]} 26. Qe6+ {[%clk 0:02:02]}  Kh8 {[%clk 0:00:44]} 27. Rf1 {[%clk 0:01:58]}  Re8 {[%clk 0:00:42]} 28. Qf7 {[%clk 0:01:58]}  Qg6 {[%clk 0:00:42]} 29. Qxc7 {[%clk 0:01:58]}  h5 {[%clk 0:00:37]} 30. Qxd6 {[%clk 0:01:55]}  Re2 {[%clk 0:00:37]} 31. Rf2 {[%clk 0:01:54]}  Qb1+ {[%clk 0:00:36]} 32. Bf1 {[%clk 0:01:50]}  Rxf2 {[%clk 0:00:34]} 33. Qd8+ {[%clk 0:01:51]}  Kh7 {[%clk 0:00:33]} 34. Kxf2 {[%clk 0:01:51]}  Ne4+ {[%clk 0:00:32]} 35. Ke3 {[%clk 0:01:49]}  Qxf1 {[%clk 0:00:16]} 36. Kxe4 {[%clk 0:01:50]}  Qe2+ {[%clk 0:00:16]} 37. Kd4 {[%clk 0:01:50]}  Qd2+ {[%clk 0:00:15]} 38. Ke5 {[%clk 0:01:49]}  Qe3+ {[%clk 0:00:15]} 39. Kf5 {[%clk 0:01:48]}  Qxh3+ {[%clk 0:00:14]} 40. Ke5 {[%clk 0:01:48]}  Qe3+ {[%clk 0:00:14]} 41. Kd6 {[%clk 0:01:46]}  Qxf4+ {[%clk 0:00:14]} 42. Kd7 {[%clk 0:01:46]}  Qf7+ {[%clk 0:00:12]} 43. Kc8 {[%clk 0:01:45]}  h4 {[%clk 0:00:06]} 44. Qxh4+ {[%clk 0:01:44]}  Kg8 {[%clk 0:00:06]} 45. Qd8+ {[%clk 0:01:44]}  Kh7 {[%clk 0:00:06]} 46. d6 {[%clk 0:01:45]}  Qc4+ {[%clk 0:00:06]} 47. Kb8 {[%clk 0:01:45]}  a5 {[%clk 0:00:04]} 48. d7 {[%clk 0:01:45]}  axb4 {[%clk 0:00:04]} 49. axb4 {[%clk 0:01:45]}  Qf4+ {[%clk 0:00:00]} 50. Qc7 {[%clk 0:01:44]} 1-0


[Site "https://www.chess.com"]

[Event "Titled Tuesday Blitz August 08 Early 2023"]
[White "Santos Flores, Alberto"]
[Black "Qiao, Cindy"]
[WhiteFideId "3601234"]
[BlackFideId "2620243"]
[WhiteElo "2554"]
[BlackElo "2396"]
[Result "1-0"]
[Round "5"]
[TimeControl "180+1"]
[Date "2023.08.08"]
[WhiteClock "0:00:05"]
[BlackClock "0:00:06"]
[Board "141"]

1. e4 {[%clk 0:03:00]}  d5 {[%clk 0:02:59]} 2. exd5 {[%clk 0:03:00]}  Qxd5 {[%clk 0:03:00]} 3. Nf3 {[%clk 0:03:01]}  Nf6 {[%clk 0:02:58]} 4. d4 {[%clk 0:03:01]}  g6 {[%clk 0:02:57]} 5. c4 {[%clk 0:02:59]}  Qd6 {[%clk 0:02:45]} 6. Nc3 {[%clk 0:02:57]}  Bg7 {[%clk 0:02:43]} 7. Be2 {[%clk 0:02:56]}  c6 {[%clk 0:02:36]} 8. O-O {[%clk 0:02:55]}  O-O {[%clk 0:02:36]} 9. h3 {[%clk 0:02:51]}  Be6 {[%clk 0:02:17]} 10. Re1 {[%clk 0:02:45]}  Na6 {[%clk 0:01:44]} 11. Be3 {[%clk 0:02:20]}  Qb4 {[%clk 0:01:28]} 12. a3 {[%clk 0:01:58]}  Qa5 {[%clk 0:01:10]} 13. Qd2 {[%clk 0:01:51]}  Qd8 {[%clk 0:01:02]} 14. Bh6 {[%clk 0:01:49]}  Nc7 {[%clk 0:00:51]} 15. Bxg7 {[%clk 0:01:46]}  Kxg7 {[%clk 0:00:52]} 16. Qe3 {[%clk 0:01:45]}  h6 {[%clk 0:00:40]} 17. Ne5 {[%clk 0:01:40]}  Qc8 {[%clk 0:00:30]} 18. Rad1 {[%clk 0:01:36]}  Rd8 {[%clk 0:00:29]} 19. Bf3 {[%clk 0:01:35]}  Rb8 {[%clk 0:00:24]} 20. g4 {[%clk 0:01:27]}  Nd7 {[%clk 0:00:13]} 21. d5 {[%clk 0:01:15]}  cxd5 {[%clk 0:00:12]} 22. cxd5 {[%clk 0:01:15]}  Nf6 {[%clk 0:00:09]} 23. dxe6 {[%clk 0:01:13]}  Qxe6 {[%clk 0:00:10]} 24. Nd3 {[%clk 0:01:05]}  Qa6 {[%clk 0:00:08]} 25. Nc5 {[%clk 0:01:01]}  Qb6 {[%clk 0:00:06]} 26. b4 {[%clk 0:00:59]}  e6 {[%clk 0:00:05]} 27. Rxd8 {[%clk 0:00:48]}  Rxd8 {[%clk 0:00:06]} 28. Nxb7 {[%clk 0:00:48]}  Rd7 {[%clk 0:00:02]} 29. Qxb6 {[%clk 0:00:46]}  axb6 {[%clk 0:00:03]} 30. Rd1 {[%clk 0:00:35]}  Ncd5 {[%clk 0:00:03]} 31. Nxd5 {[%clk 0:00:35]}  exd5 {[%clk 0:00:04]} 32. Nc5 {[%clk 0:00:27]}  bxc5 {[%clk 0:00:03]} 33. bxc5 {[%clk 0:00:28]}  Rc7 {[%clk 0:00:03]} 34. Rc1 {[%clk 0:00:28]}  Ra7 {[%clk 0:00:02]} 35. c6 {[%clk 0:00:24]}  Rc7 {[%clk 0:00:02]} 36. a4 {[%clk 0:00:22]}  Kf8 {[%clk 0:00:02]} 37. Be2 {[%clk 0:00:15]}  Ke7 {[%clk 0:00:02]} 38. Bb5 {[%clk 0:00:16]}  Kd6 {[%clk 0:00:02]} 39. Re1 {[%clk 0:00:15]}  d4 {[%clk 0:00:02]} 40. f3 {[%clk 0:00:14]}  Nd5 {[%clk 0:00:02]} 41. Rd1 {[%clk 0:00:13]}  Kc5 {[%clk 0:00:02]} 42. Rc1+ {[%clk 0:00:13]}  Kd6 {[%clk 0:00:03]} 43. Kf2 {[%clk 0:00:12]}  Nc3 {[%clk 0:00:03]} 44. Rc2 {[%clk 0:00:12]}  Kc5 {[%clk 0:00:03]} 45. Rd2 {[%clk 0:00:11]}  Kd5 {[%clk 0:00:03]} 46. Rd3 {[%clk 0:00:10]}  Kc5 {[%clk 0:00:04]} 47. Ke1 {[%clk 0:00:10]}  Nxb5 {[%clk 0:00:04]} 48. axb5 {[%clk 0:00:10]}  Kxb5 {[%clk 0:00:05]} 49. Rxd4 {[%clk 0:00:11]}  Rxc6 {[%clk 0:00:05]} 50. Rd7 {[%clk 0:00:11]}  Rf6 {[%clk 0:00:06]} 51. Ke2 {[%clk 0:00:10]}  Kc6 {[%clk 0:00:06]} 52. Rd1 {[%clk 0:00:10]}  Re6+ {[%clk 0:00:06]} 53. Kf2 {[%clk 0:00:10]}  Kc5 {[%clk 0:00:06]} 54. Kg3 {[%clk 0:00:09]}  Re7 {[%clk 0:00:06]} 55. f4 {[%clk 0:00:09]}  Kc4 {[%clk 0:00:06]} 56. f5 {[%clk 0:00:09]}  gxf5 {[%clk 0:00:05]} 57. gxf5 {[%clk 0:00:09]}  Re3+ {[%clk 0:00:05]} 58. Kg4 {[%clk 0:00:09]}  Re4+ {[%clk 0:00:05]} 59. Kh5 {[%clk 0:00:07]}  Rf4 {[%clk 0:00:05]} 60. Kxh6 {[%clk 0:00:05]}  Rxf5 {[%clk 0:00:05]} 61. h4 {[%clk 0:00:05]}  Rf4 {[%clk 0:00:05]} 62. h5 {[%clk 0:00:05]}  Rh4 {[%clk 0:00:03]} 63. Kg5 {[%clk 0:00:04]}  Rh2 {[%clk 0:00:02]} 64. h6 {[%clk 0:00:04]}  f5 {[%clk 0:00:03]} 65. Rd6 {[%clk 0:00:02]}  Kc5 {[%clk 0:00:02]} 66. Rf6 {[%clk 0:00:02]}  Kd5 {[%clk 0:00:02]} 67. Kxf5 {[%clk 0:00:02]}  Rf2+ {[%clk 0:00:01]} 68. Kg6 {[%clk 0:00:02]}  Rh2 {[%clk 0:00:02]} 69. Kg7 {[%clk 0:00:01]}  Rg2+ {[%clk 0:00:03]} 70. Rg6 {[%clk 0:00:02]}  Rh2 {[%clk 0:00:04]} 71. h7 {[%clk 0:00:02]}  Re2 {[%clk 0:00:04]} 72. h8=Q {[%clk 0:00:03]}  Re7+ {[%clk 0:00:04]} 73. Kh6 {[%clk 0:00:03]}  Re2 {[%clk 0:00:05]} 74. Qg8+ {[%clk 0:00:04]}  Kd4 {[%clk 0:00:04]} 75. Rd6+ {[%clk 0:00:04]}  Ke3 {[%clk 0:00:05]} 76. Re6+ {[%clk 0:00:04]}  Kf2 {[%clk 0:00:06]} 77. Rxe2+ {[%clk 0:00:04]}  Kxe2 {[%clk 0:00:06]} 78. Qf7 {[%clk 0:00:05]} 1-0


[Site "https://www.chess.com"]

[Event "Titled Tuesday Blitz August 08 Early 2023"]
[White "Unat, Can Haktan"]
[Black "Silva, Kaua Marques"]
[WhiteFideId "6398073"]
[BlackFideId "22701168"]
[WhiteElo "2551"]
[BlackElo "2372"]
[Result "1-0"]
[Round "5"]
[TimeControl "180+1"]
[Date "2023.08.08"]
[WhiteClock "0:01:20"]
[BlackClock "0:01:05"]
[Board "143"]

1. e4 {[%clk 0:03:00]}  c6 {[%clk 0:02:59]} 2. Ne2 {[%clk 0:02:53]}  d5 {[%clk 0:03:00]} 3. Nbc3 {[%clk 0:02:54]}  e5 {[%clk 0:02:56]} 4. d4 {[%clk 0:02:47]}  exd4 {[%clk 0:02:49]} 5. Qxd4 {[%clk 0:02:48]}  f6 {[%clk 0:02:38]} 6. exd5 {[%clk 0:02:33]}  Bd6 {[%clk 0:02:05]} 7. Bf4 {[%clk 0:02:30]}  c5 {[%clk 0:01:50]} 8. Qe3+ {[%clk 0:02:06]}  Ne7 {[%clk 0:01:42]} 9. Bxd6 {[%clk 0:02:04]}  Qxd6 {[%clk 0:01:41]} 10. Nb5 {[%clk 0:02:04]}  Qb6 {[%clk 0:01:40]} 11. d6 {[%clk 0:02:03]}  O-O {[%clk 0:01:32]} 12. dxe7 {[%clk 0:02:02]}  Re8 {[%clk 0:01:32]} 13. Nf4 {[%clk 0:01:51]}  Nc6 {[%clk 0:01:25]} 14. Bc4+ {[%clk 0:01:35]}  Kh8 {[%clk 0:01:25]} 15. O-O-O {[%clk 0:01:29]}  Rxe7 {[%clk 0:01:05]} 16. Nd5 {[%clk 0:01:20]} 1-0


[Site "https://www.chess.com"]

[Event "Titled Tuesday Blitz August 08 Early 2023"]
[White "Girsh, Daniel"]
[Black "Hoffmann, Asa"]
[WhiteFideId "30949190"]
[BlackFideId "2001470"]
[WhiteElo "2548"]
[BlackElo "2361"]
[Result "1-0"]
[Round "5"]
[TimeControl "180+1"]
[Date "2023.08.08"]
[WhiteClock "0:00:20"]
[BlackClock "0:00:09"]
[Board "145"]

1. d4 {[%clk 0:03:00]}  Nf6 {[%clk 0:02:55]} 2. c4 {[%clk 0:03:01]}  c5 {[%clk 0:02:51]} 3. d5 {[%clk 0:03:00]}  e5 {[%clk 0:02:51]} 4. Nc3 {[%clk 0:02:58]}  d6 {[%clk 0:02:51]} 5. e4 {[%clk 0:02:57]}  Be7 {[%clk 0:02:51]} 6. Be2 {[%clk 0:02:58]}  Nbd7 {[%clk 0:02:51]} 7. Nf3 {[%clk 0:02:58]}  Nf8 {[%clk 0:02:51]} 8. a3 {[%clk 0:02:55]}  Ng6 {[%clk 0:02:50]} 9. b4 {[%clk 0:02:52]}  b6 {[%clk 0:02:50]} 10. O-O {[%clk 0:02:52]}  O-O {[%clk 0:02:50]} 11. bxc5 {[%clk 0:02:48]}  bxc5 {[%clk 0:02:50]} 12. Rb1 {[%clk 0:02:48]}  Nh5 {[%clk 0:02:47]} 13. g3 {[%clk 0:02:42]}  f5 {[%clk 0:02:44]} 14. Re1 {[%clk 0:02:19]}  fxe4 {[%clk 0:02:34]} 15. Nxe4 {[%clk 0:02:18]}  Bf5 {[%clk 0:02:34]} 16. Nfd2 {[%clk 0:02:04]}  Nf6 {[%clk 0:02:24]} 17. Bd3 {[%clk 0:02:01]}  Qd7 {[%clk 0:02:21]} 18. Qc2 {[%clk 0:01:59]}  Nxe4 {[%clk 0:02:16]} 19. Nxe4 {[%clk 0:01:58]}  h6 {[%clk 0:02:10]} 20. Bd2 {[%clk 0:01:55]}  Nh8 {[%clk 0:01:54]} 21. Rb2 {[%clk 0:01:51]}  Bxe4 {[%clk 0:01:44]} 22. Bxe4 {[%clk 0:01:48]}  Nf7 {[%clk 0:01:44]} 23. Bf5 {[%clk 0:01:45]}  Qc7 {[%clk 0:01:41]} 24. Be6 {[%clk 0:01:43]}  Rab8 {[%clk 0:01:33]} 25. Rxb8 {[%clk 0:01:31]}  Qxb8 {[%clk 0:01:32]} 26. Rb1 {[%clk 0:01:31]}  Qe8 {[%clk 0:01:29]} 27. Rb7 {[%clk 0:01:29]}  Kh8 {[%clk 0:01:23]} 28. Rxa7 {[%clk 0:01:00]}  Ng5 {[%clk 0:01:18]} 29. Bxg5 {[%clk 0:00:58]}  Bxg5 {[%clk 0:01:18]} 30. Qa4 {[%clk 0:00:53]}  Qh5 {[%clk 0:01:16]} 31. Ra8 {[%clk 0:00:51]}  Qf3 {[%clk 0:01:07]} 32. Rxf8+ {[%clk 0:00:47]}  Qxf8 {[%clk 0:01:06]} 33. Qd7 {[%clk 0:00:46]}  Bd2 {[%clk 0:01:02]} 34. Bf5 {[%clk 0:00:42]}  Bc3 {[%clk 0:00:48]} 35. a4 {[%clk 0:00:31]}  Bd4 {[%clk 0:00:48]} 36. a5 {[%clk 0:00:26]}  e4 {[%clk 0:00:37]} 37. Qc8 {[%clk 0:00:20]}  Qxc8 {[%clk 0:00:30]} 38. Bxc8 {[%clk 0:00:21]}  e3 {[%clk 0:00:09]} 39. Kf1 {[%clk 0:00:20]} 1-0


[Site "https://www.chess.com"]

[Event "Titled Tuesday Blitz August 08 Early 2023"]
[White "Topalov, Aleksandar"]
[Black "Bettalli, Francesco"]
[WhiteFideId "925659"]
[BlackFideId "2816453"]
[WhiteElo "2349"]
[BlackElo "2544"]
[Result "1-0"]
[Round "5"]
[TimeControl "180+1"]
[Date "2023.08.08"]
[WhiteClock "0:00:20"]
[BlackClock "0:00:00"]
[Board "147"]

1. b3 {[%clk 0:03:00]}  a5 {[%clk 0:02:23]} 2. a3 {[%clk 0:03:00]}  e6 {[%clk 0:02:18]} 3. Bb2 {[%clk 0:02:59]}  Nf6 {[%clk 0:02:17]} 4. Nf3 {[%clk 0:03:00]}  d5 {[%clk 0:02:17]} 5. e3 {[%clk 0:03:00]}  Bd6 {[%clk 0:02:17]} 6. d4 {[%clk 0:03:00]}  Nbd7 {[%clk 0:02:17]} 7. Nbd2 {[%clk 0:03:00]}  Qe7 {[%clk 0:02:13]} 8. Ne5 {[%clk 0:02:58]}  O-O {[%clk 0:02:11]} 9. Bd3 {[%clk 0:02:57]}  Ne8 {[%clk 0:02:10]} 10. O-O {[%clk 0:02:48]}  g6 {[%clk 0:01:58]} 11. f4 {[%clk 0:02:43]}  f6 {[%clk 0:01:58]} 12. Nxd7 {[%clk 0:02:37]}  Bxd7 {[%clk 0:01:59]} 13. e4 {[%clk 0:02:21]}  dxe4 {[%clk 0:01:51]} 14. Nxe4 {[%clk 0:02:20]}  Bc6 {[%clk 0:01:52]} 15. Qe2 {[%clk 0:02:16]}  Rd8 {[%clk 0:01:31]} 16. c4 {[%clk 0:02:12]}  Bxe4 {[%clk 0:01:20]} 17. Bxe4 {[%clk 0:02:04]}  c6 {[%clk 0:01:21]} 18. a4 {[%clk 0:02:01]}  Ng7 {[%clk 0:01:12]} 19. Bc2 {[%clk 0:01:59]}  c5 {[%clk 0:00:55]} 20. dxc5 {[%clk 0:01:39]}  Bxc5+ {[%clk 0:00:56]} 21. Kh1 {[%clk 0:01:39]}  Rd7 {[%clk 0:00:41]} 22. Rad1 {[%clk 0:01:35]}  Rfd8 {[%clk 0:00:34]} 23. Be4 {[%clk 0:01:24]}  Nf5 {[%clk 0:00:19]} 24. Bxf5 {[%clk 0:01:19]}  exf5 {[%clk 0:00:17]} 25. Qxe7 {[%clk 0:01:13]}  Bxe7 {[%clk 0:00:18]} 26. Rxd7 {[%clk 0:01:10]}  Rxd7 {[%clk 0:00:19]} 27. h3 {[%clk 0:00:39]}  Kf7 {[%clk 0:00:18]} 28. Bc3 {[%clk 0:00:36]}  b6 {[%clk 0:00:14]} 29. Rf3 {[%clk 0:00:33]}  Bc5 {[%clk 0:00:13]} 30. g3 {[%clk 0:00:21]}  Rd1+ {[%clk 0:00:06]} 31. Kg2 {[%clk 0:00:21]}  h5 {[%clk 0:00:00]} 32. h4 {[%clk 0:00:20]} 1-0


[Site "https://www.chess.com"]

[Event "Titled Tuesday Blitz August 08 Early 2023"]
[White "Keleberda, Tymur"]
[Black "Zaksaite, Salomeja"]
[WhiteFideId "14174294"]
[BlackFideId "12801496"]
[WhiteElo "2540"]
[BlackElo "2317"]
[Result "1-0"]
[Round "5"]
[TimeControl "180+1"]
[Date "2023.08.08"]
[WhiteClock "0:02:05"]
[BlackClock "0:00:06"]
[Board "149"]

1. d4 {[%clk 0:03:00]}  Nf6 {[%clk 0:02:59]} 2. c4 {[%clk 0:03:00]}  g6 {[%clk 0:02:59]} 3. g3 {[%clk 0:02:59]}  Bg7 {[%clk 0:02:58]} 4. Bg2 {[%clk 0:02:59]}  d6 {[%clk 0:02:58]} 5. Nc3 {[%clk 0:02:59]}  O-O {[%clk 0:02:57]} 6. e4 {[%clk 0:02:59]}  Nc6 {[%clk 0:02:55]} 7. Nge2 {[%clk 0:02:54]}  e5 {[%clk 0:02:55]} 8. d5 {[%clk 0:02:54]}  Nb8 {[%clk 0:02:55]} 9. O-O {[%clk 0:02:54]}  a5 {[%clk 0:02:55]} 10. f4 {[%clk 0:02:53]}  exf4 {[%clk 0:02:54]} 11. gxf4 {[%clk 0:02:54]}  Re8 {[%clk 0:02:51]} 12. h3 {[%clk 0:02:53]}  Na6 {[%clk 0:02:47]} 13. Be3 {[%clk 0:02:53]}  b6 {[%clk 0:02:46]} 14. Bd4 {[%clk 0:02:53]}  Nc5 {[%clk 0:02:46]} 15. e5 {[%clk 0:02:54]}  Nh5 {[%clk 0:02:38]} 16. exd6 {[%clk 0:02:50]}  cxd6 {[%clk 0:02:36]} 17. Bxg7 {[%clk 0:02:50]}  Kxg7 {[%clk 0:02:29]} 18. Nd4 {[%clk 0:02:51]}  Qf6 {[%clk 0:02:20]} 19. Ncb5 {[%clk 0:02:42]}  Re7 {[%clk 0:02:00]} 20. Rf3 {[%clk 0:02:28]}  Nxf4 {[%clk 0:01:39]} 21. Qd2 {[%clk 0:02:27]}  g5 {[%clk 0:01:36]} 22. Nc6 {[%clk 0:02:24]}  Re2 {[%clk 0:01:30]} 23. Rxf4 {[%clk 0:02:12]}  Rxd2 {[%clk 0:01:27]} 24. Rxf6 {[%clk 0:02:12]}  Kxf6 {[%clk 0:01:27]} 25. Nc7 {[%clk 0:02:13]}  Ra6 {[%clk 0:01:07]} 26. Rf1+ {[%clk 0:02:13]}  Kg7 {[%clk 0:01:03]} 27. Ne7 {[%clk 0:02:12]}  Ra7 {[%clk 0:00:47]} 28. Ne8+ {[%clk 0:02:12]}  Kf8 {[%clk 0:00:21]} 29. Nxc8 {[%clk 0:02:12]}  Re7 {[%clk 0:00:10]} 30. Nxe7 {[%clk 0:02:11]}  Kxe7 {[%clk 0:00:09]} 31. Nf6 {[%clk 0:02:07]}  Rxb2 {[%clk 0:00:08]} 32. Nxh7 {[%clk 0:02:07]}  Rxa2 {[%clk 0:00:07]} 33. Nxg5 {[%clk 0:02:07]}  a4 {[%clk 0:00:08]} 34. Rxf7+ {[%clk 0:02:06]}  Ke8 {[%clk 0:00:08]} 35. Ra7 {[%clk 0:02:06]}  a3 {[%clk 0:00:07]} 36. Bf3 {[%clk 0:02:05]}  Ra1+ {[%clk 0:00:06]} 37. Kf2 {[%clk 0:02:05]}  a2 {[%clk 0:00:07]} 38. Ne6 {[%clk 0:02:05]}  Nb3 {[%clk 0:00:06]} 39. Bh5# {[%clk 0:02:05]} 1-0


[Site "https://www.chess.com"]

[Event "Titled Tuesday Blitz August 08 Early 2023"]
[White "Jahnz, Fabian"]
[Black "Palczert, Matyas"]
[WhiteFideId "4653300"]
[BlackFideId "784958"]
[WhiteElo "2310"]
[BlackElo "2539"]
[Result "1/2-1/2"]
[Round "5"]
[TimeControl "180+1"]
[Date "2023.08.08"]
[WhiteClock "0:00:17"]
[BlackClock "0:00:09"]
[Board "150"]

1. e4 {[%clk 0:03:00]}  c5 {[%clk 0:02:58]} 2. Nf3 {[%clk 0:02:58]}  e6 {[%clk 0:02:57]} 3. d4 {[%clk 0:02:58]}  cxd4 {[%clk 0:02:58]} 4. Nxd4 {[%clk 0:02:58]}  Nc6 {[%clk 0:02:58]} 5. c4 {[%clk 0:02:58]}  Nf6 {[%clk 0:02:55]} 6. Nc3 {[%clk 0:02:58]}  Bb4 {[%clk 0:02:54]} 7. Nxc6 {[%clk 0:02:58]}  bxc6 {[%clk 0:02:55]} 8. Bd3 {[%clk 0:02:58]}  e5 {[%clk 0:02:56]} 9. O-O {[%clk 0:02:57]}  O-O {[%clk 0:02:55]} 10. a3 {[%clk 0:02:57]}  Bc5 {[%clk 0:02:55]} 11. b4 {[%clk 0:02:55]}  Bd4 {[%clk 0:02:55]} 12. Bb2 {[%clk 0:02:54]}  Re8 {[%clk 0:02:52]} 13. Qc2 {[%clk 0:02:49]}  d6 {[%clk 0:02:41]} 14. Ne2 {[%clk 0:02:48]}  Bxb2 {[%clk 0:02:39]} 15. Qxb2 {[%clk 0:02:49]}  d5 {[%clk 0:02:37]} 16. Ng3 {[%clk 0:02:43]}  h5 {[%clk 0:02:06]} 17. cxd5 {[%clk 0:02:17]}  h4 {[%clk 0:02:06]} 18. Nf5 {[%clk 0:02:06]}  Bxf5 {[%clk 0:02:05]} 19. exf5 {[%clk 0:02:06]}  h3 {[%clk 0:01:51]} 20. d6 {[%clk 0:01:47]}  e4 {[%clk 0:01:40]} 21. Bc4 {[%clk 0:01:33]}  Qxd6 {[%clk 0:01:10]} 22. Qb3 {[%clk 0:01:30]}  hxg2 {[%clk 0:01:02]} 23. Bxf7+ {[%clk 0:01:22]}  Kf8 {[%clk 0:01:01]} 24. Kxg2 {[%clk 0:01:10]}  Ng4 {[%clk 0:00:23]} 25. Rh1 {[%clk 0:01:09]}  Qf4 {[%clk 0:00:18]} 26. Bxe8 {[%clk 0:00:24]}  Qxf2+ {[%clk 0:00:15]} 27. Kh3 {[%clk 0:00:24]}  Rxe8 {[%clk 0:00:05]} 28. Kxg4 {[%clk 0:00:21]}  e3 {[%clk 0:00:04]} 29. Qc4 {[%clk 0:00:16]}  Qg2+ {[%clk 0:00:04]} 30. Kh4 {[%clk 0:00:14]}  Re4+ {[%clk 0:00:03]} 31. Qxe4 {[%clk 0:00:12]}  Qxe4+ {[%clk 0:00:04]} 32. Kg3 {[%clk 0:00:13]}  Qe5+ {[%clk 0:00:03]} 33. Kf3 {[%clk 0:00:12]}  Qxf5+ {[%clk 0:00:03]} 34. Ke2 {[%clk 0:00:12]}  Qc2+ {[%clk 0:00:02]} 35. Kf3 {[%clk 0:00:12]}  Qc3 {[%clk 0:00:03]} 36. Rae1 {[%clk 0:00:12]}  Qxa3 {[%clk 0:00:02]} 37. Rxe3 {[%clk 0:00:11]}  Qxb4 {[%clk 0:00:03]} 38. Rf1 {[%clk 0:00:10]}  Kg8 {[%clk 0:00:03]} 39. Ke2 {[%clk 0:00:10]}  Qb2+ {[%clk 0:00:03]} 40. Kd3 {[%clk 0:00:09]}  a5 {[%clk 0:00:04]} 41. Ref3 {[%clk 0:00:10]}  Qb3+ {[%clk 0:00:04]} 42. Kd4 {[%clk 0:00:10]}  Qd5+ {[%clk 0:00:04]} 43. Kc3 {[%clk 0:00:10]}  a4 {[%clk 0:00:05]} 44. Rf8+ {[%clk 0:00:10]}  Kh7 {[%clk 0:00:05]} 45. R1f3 {[%clk 0:00:09]}  Qb3+ {[%clk 0:00:04]} 46. Kd4 {[%clk 0:00:09]}  Qb4+ {[%clk 0:00:04]} 47. Ke5 {[%clk 0:00:10]}  Qc5+ {[%clk 0:00:04]} 48. Ke6 {[%clk 0:00:10]}  Qd5+ {[%clk 0:00:04]} 49. Ke7 {[%clk 0:00:09]}  Qe5+ {[%clk 0:00:04]} 50. Kd7 {[%clk 0:00:09]}  Qd5+ {[%clk 0:00:04]} 51. Kc7 {[%clk 0:00:09]}  Qe5+ {[%clk 0:00:04]} 52. Kxc6 {[%clk 0:00:09]}  Qe4+ {[%clk 0:00:04]} 53. Kc5 {[%clk 0:00:10]}  Qe5+ {[%clk 0:00:04]} 54. Kb4 {[%clk 0:00:10]}  Qd4+ {[%clk 0:00:04]} 55. Ka3 {[%clk 0:00:10]}  Qc5+ {[%clk 0:00:04]} 56. Kxa4 {[%clk 0:00:10]}  Qc4+ {[%clk 0:00:05]} 57. Ka3 {[%clk 0:00:10]}  Qc5+ {[%clk 0:00:05]} 58. Kb3 {[%clk 0:00:10]}  Qb5+ {[%clk 0:00:05]} 59. Kc3 {[%clk 0:00:11]}  Qc5+ {[%clk 0:00:06]} 60. Kd3 {[%clk 0:00:12]}  Qd5+ {[%clk 0:00:07]} 61. Ke3 {[%clk 0:00:12]}  Qe5+ {[%clk 0:00:07]} 62. Kf2 {[%clk 0:00:13]}  Qb2+ {[%clk 0:00:07]} 63. Kg3 {[%clk 0:00:14]}  Qe5+ {[%clk 0:00:08]} 64. Kg2 {[%clk 0:00:14]}  Qe2+ {[%clk 0:00:08]} 65. Kh3 {[%clk 0:00:14]}  Qe6+ {[%clk 0:00:08]} 66. Kg2 {[%clk 0:00:13]}  Qe2+ {[%clk 0:00:08]} 67. Kg1 {[%clk 0:00:14]}  Qe1+ {[%clk 0:00:08]} 68. Rf1 {[%clk 0:00:14]}  Qe3+ {[%clk 0:00:09]} 69. R8f2 {[%clk 0:00:15]}  Qe4 {[%clk 0:00:08]} 70. Rg2 {[%clk 0:00:15]}  Qe3+ {[%clk 0:00:08]} 71. Kh1 {[%clk 0:00:15]}  Qe4 {[%clk 0:00:09]} 72. Rg1 {[%clk 0:00:15]}  Qd5 {[%clk 0:00:09]} 73. h3 {[%clk 0:00:14]}  Qf3 {[%clk 0:00:09]} 74. Kh2 {[%clk 0:00:14]}  Qf4+ {[%clk 0:00:09]} 75. Kh1 {[%clk 0:00:14]}  Qf3 {[%clk 0:00:09]} 76. Kh2 {[%clk 0:00:14]}  Qf4+ {[%clk 0:00:10]} 77. Rg3 {[%clk 0:00:15]}  Qf2+ {[%clk 0:00:10]} 78. R1g2 {[%clk 0:00:15]}  Qf4 {[%clk 0:00:10]} 79. Kg1 {[%clk 0:00:15]}  Qc1+ {[%clk 0:00:10]} 80. Kf2 {[%clk 0:00:15]}  Qd2+ {[%clk 0:00:11]} 81. Kf3 {[%clk 0:00:15]}  Qd3+ {[%clk 0:00:11]} 82. Kf2 {[%clk 0:00:15]}  Qd2+ {[%clk 0:00:11]} 83. Kg1 {[%clk 0:00:16]}  Qc1+ {[%clk 0:00:10]} 84. Kh2 {[%clk 0:00:16]}  Qf4 {[%clk 0:00:10]} 85. Kh1 {[%clk 0:00:16]}  Qf1+ {[%clk 0:00:10]} 86. Rg1 {[%clk 0:00:17]}  Qf6 {[%clk 0:00:09]} 87. Kh2 {[%clk 0:00:17]}  Qf2+ {[%clk 0:00:09]} 88. R1g2 {[%clk 0:00:17]}  Qf4 {[%clk 0:00:09]} 1/2-1/2


[Site "https://www.chess.com"]